bitfinex-derivatives/quotes_ETHF0:USTF0_20260123
["timestamp","ask_amount","ask_price","bid_price","bid_amount"]
[1769135767244,0.89110839,2965.0,2963.4,2.42704269]
[1769135767451,1.40735338,2964.8,2963.3,5.16144943]
[1769135769349,1.40735338,2965.2,2963.5,1.40798282]
[1769135773152,2.26075732,2965.1,2963.5,1.40798282]
[1769135773352,1.40735338,2965.1,2963.5,1.40798282]
[1769135776652,0.85466592,2965.0,2963.5,1.40798282]
[1769135776856,1.40735338,2964.8,2963.5,5.17198282]
[1769135780969,1.40735338,2964.8,2963.5,1.40798282]
[1769135781454,0.85551257,2964.7,2963.5,1.40798282]
[1769135781652,1.40735338,2964.8,2963.5,1.40798282]
[1769135781955,0.85551266,2964.7,2963.5,1.40798282]
[1769135782160,1.40735338,2964.8,2963.5,1.40798282]
[1769135782362,0.85560726,2964.7,2963.5,1.40798282]
[1769135782658,1.40735338,2964.8,2963.5,1.40798282]
[1769135782958,0.85564318,2964.7,2963.5,1.40798282]
[1769135783147,1.40735338,2964.8,2963.5,1.40798282]
[1769135783351,0.85574099,2964.7,2963.5,1.40798282]
[1769135783558,1.40735338,2964.8,2963.5,1.40798282]
[1769135783755,0.85577579,2964.7,2963.5,1.40798282]
[1769135784059,1.40735338,2964.8,2963.5,1.40798282]
[1769135784255,0.85587552,2964.7,2963.5,1.40798282]
[1769135784455,1.40735338,2964.8,2963.5,1.40798282]
[1769135784657,0.8559087,2964.7,2963.5,1.40798282]
[1769135784855,1.40735338,2964.8,2963.5,1.40798282]
[1769135785057,0.85590859,2964.7,2963.5,1.40798282]
[1769135785357,1.40735338,2964.8,2963.5,1.40798282]
[1769135785654,0.85606337,2964.7,2963.5,1.40798282]
[1769135785850,1.40735338,2964.8,2963.5,1.40798282]
[1769135786057,0.85612158,2964.7,2963.5,1.40798282]
[1769135786251,1.40735338,2964.8,2963.5,1.40798282]
[1769135786450,0.85630266,2964.7,2963.5,1.40798282]
[1769135786761,1.40735338,2964.8,2963.5,3.83502551]
[1769135787154,1.40735338,2964.8,2963.6,2.42704269]
[1769135787361,1.40735338,2964.8,2963.5,3.83502551]
[1769135788162,1.40735338,2964.8,2963.6,2.42704269]
[1769135794965,2.29918992,2964.8,2963.6,2.42704269]
[1769135795159,0.89183654,2964.5,2963.6,2.42704269]
[1769135795359,0.89183654,2964.5,2963.5,3.83502551]
[1769135796667,0.89183654,2964.5,2963.5,1.40798282]
[1769135803877,2.29918992,2964.8,2963.5,1.40798282]
[1769135804074,0.8569792,2964.7,2963.7,1.43868434]
[1769135804276,0.89183654,2964.8,2963.7,2.42704269]
[1769135804579,0.89183654,2964.8,2963.6,7.67172703]
[1769135805376,0.89183654,2965.0,2963.7,1.43868434]
[1769135805569,0.85739092,2964.9,2963.7,1.43868434]
[1769135805769,0.85739092,2964.8,2963.7,1.43868434]
[1769135805970,0.89183654,2965.0,2963.7,1.43868434]
[1769135806168,0.85767571,2964.9,2963.7,1.43868434]
[1769135806370,0.85767571,2964.8,2963.7,1.43868434]
[1769135806665,0.89183654,2965.0,2963.7,1.43868434]
[1769135806871,0.85769531,2964.9,2963.7,1.43868434]
[1769135807069,0.85769531,2964.8,2963.7,1.43868434]
[1769135807270,0.89183654,2965.0,2963.7,1.43868434]
[1769135807468,0.85768938,2964.9,2963.7,1.43868434]
[1769135807773,0.85768938,2964.8,2963.7,1.43868434]
[1769135807974,0.89183654,2965.0,2963.7,1.43868434]
[1769135808274,0.8576918,2964.9,2963.7,1.43868434]
[1769135808569,0.8576918,2964.8,2963.7,1.43868434]
[1769135808773,0.89183654,2965.0,2963.7,1.43868434]
[1769135808973,0.85768758,2964.9,2963.7,1.43868434]
[1769135809169,0.85768758,2964.8,2963.7,1.43868434]
[1769135809369,0.89183654,2965.0,2963.7,1.43868434]
[1769135809576,0.85768149,2964.9,2963.7,1.43868434]
[1769135809770,0.85768149,2964.8,2963.7,1.43868434]
[1769135809972,0.89183654,2965.0,2963.7,1.43868434]
[1769135810170,0.85768244,2964.9,2963.7,1.43868434]
[1769135810374,0.85768244,2964.8,2963.7,1.43868434]
[1769135810575,0.89183654,2965.0,2963.7,1.43868434]
[1769135810870,0.85767793,2964.9,2963.7,1.43868434]
[1769135811069,0.85767793,2964.8,2963.7,1.43868434]
[1769135811271,0.89183654,2965.0,2963.7,1.43868434]
[1769135811482,0.85766931,2964.9,2963.7,1.43868434]
[1769135811680,0.85766931,2964.8,2963.7,1.43868434]
[1769135811873,0.89183654,2965.0,2963.7,1.43868434]
[1769135812074,0.85766905,2964.9,2963.7,1.43868434]
[1769135812380,0.85766905,2964.8,2963.7,1.43868434]
[1769135812577,0.89183654,2965.0,2963.7,1.43868434]
[1769135812775,0.85765945,2964.9,2963.7,1.43868434]
[1769135812976,0.85765945,2964.8,2963.7,1.43868434]
[1769135813178,0.89183654,2965.0,2963.7,1.43868434]
[1769135813377,0.85771956,2964.9,2963.7,1.43868434]
[1769135813677,0.85771956,2964.8,2963.7,1.43868434]
[1769135813977,0.89183654,2964.3,2963.4,2.42704269]
[1769135814173,0.89183654,2964.3,2963.3,2.4295093]
[1769135814574,0.89183654,2964.3,2963.3,3.86819364]
[1769135816880,0.89183654,2964.3,2963.3,1.44115095]
[1769135818380,0.89183654,2964.6,2963.3,1.44115095]
[1769135818583,0.85747892,2964.5,2963.3,1.44115095]
[1769135818781,0.85747892,2964.4,2963.3,1.44115095]
[1769135819082,0.89183654,2964.6,2963.3,1.44115095]
[1769135819283,0.89183654,2963.4,2962.8,2.42704269]
[1769135819480,0.89183654,2963.2,2962.0,3.86572703]
[1769135819678,0.89183654,2962.9,2962.0,1.43868434]
[1769135819886,0.00505817,2962.9,2962.0,1.43868434]
[1769135820485,0.00823405,2962.9,2962.0,1.44190714]
[1769135828184,0.89183654,2963.8,2962.5,2.11619578]
[1769135828389,2.11144584,2964.4,2962.9,1.22435924]
[1769135828888,0.89183654,2964.4,2963.2,1.22435924]
[1769135829391,0.89585383,2964.4,2963.2,1.22435924]
[1769135829690,0.89585383,2964.4,2963.5,0.00505817]
[1769135830079,0.00401729,2964.4,2963.5,1.22941741]
[1769135832192,0.00401729,2964.4,2963.8,1.22435924]
[1769135832494,0.89183654,2965.0,2963.8,1.22435924]
[1769135833393,0.89580531,2965.0,2963.8,1.22435924]
[1769135838090,0.00396877,2965.0,2963.8,1.22435924]
[1769135839290,1.22357807,2965.0,2963.5,0.00505817]
[1769135839484,0.89183654,2964.2,2963.5,0.00505817]
[1769135839889,0.00505817,2964.1,2963.5,0.00505817]
[1769135844001,0.00396877,2965.0,2963.8,2.11619578]
[1769135844509,0.00396877,2965.0,2963.8,1.22435924]
[1769135846411,0.00396877,2965.0,2964.2,1.22435924]
[1769135846614,0.00396877,2965.0,2964.2,1.22847452]
[1769135847009,0.89183654,2966.0,2964.5,1.22435924]
[1769135847212,0.86026224,2965.9,2964.5,1.22435924]
[1769135847416,0.86026224,2965.8,2964.5,1.22435924]
[1769135847617,0.89183654,2966.0,2964.9,0.00505817]
[1769135848021,0.89619475,2966.0,2964.9,0.00505817]
[1769135850131,0.89183654,2965.7,2964.9,0.00505817]
[1769135855014,0.00435821,2966.0,2964.9,0.00505817]
[1769135856823,0.86037254,2965.9,2964.9,0.00505817]
[1769135857026,0.86037254,2965.8,2964.9,0.00505817]
[1769135857323,0.00435821,2966.0,2964.9,0.00505817]
[1769135857525,0.89132211,2965.8,2964.9,0.00505817]
[1769135857821,0.86093538,2965.7,2964.9,0.00505817]
[1769135858025,0.89132211,2965.8,2964.9,0.00505817]
[1769135858321,0.86091861,2965.7,2964.9,0.00505817]
[1769135858517,0.86091861,2965.6,2964.9,0.00505817]
[1769135858720,0.89132211,2965.8,2964.2,0.00411528]
[1769135858721,2.01512559,2965.5,2964.2,0.00411528]
[1769135858920,1.75269432,2965.4,2964.2,0.00411528]
[1769135859124,0.86137221,2965.3,2964.2,0.00411528]
[1769135859317,0.86137221,2965.2,2964.2,0.00411528]
[1769135859621,0.8615884,2965.1,2964.2,0.00411528]
[1769135859921,2.04499909,2965.4,2964.2,0.00411528]
[1769135859922,1.15367698,2965.3,2964.2,0.00411528]
[1769135860226,0.86158028,2965.2,2964.2,0.00411528]
[1769135860417,0.86158028,2965.1,2964.2,0.00411528]
[1769135860621,1.15367698,2965.3,2964.2,0.00411528]
[1769135860827,0.86164136,2965.2,2964.2,0.00411528]
[1769135861025,0.86164136,2965.1,2964.5,0.00505817]
[1769135861319,1.15367698,2965.3,2964.5,0.00505817]
[1769135861521,0.86170764,2965.2,2964.5,0.00505817]
[1769135861828,0.86170764,2965.1,2964.5,0.00505817]
[1769135862027,1.15367698,2965.3,2964.5,0.00505817]
[1769135862324,0.86170765,2965.2,2964.5,0.00505817]
[1769135862519,0.86170765,2965.1,2964.5,0.00505817]
[1769135862717,1.15367698,2965.3,2964.5,0.00505817]
[1769135862913,0.86175262,2965.2,2964.5,0.00505817]
[1769135863113,0.86175262,2965.1,2964.5,0.00505817]
[1769135863325,1.15367698,2965.3,2964.5,0.00505817]
[1769135863526,0.86178593,2965.2,2964.5,0.00505817]
[1769135863716,0.86178593,2965.1,2964.5,0.00505817]
[1769135863916,1.15367698,2965.7,2964.5,0.00505817]
[1769135864226,2.01548603,2965.6,2964.5,0.00505817]
[1769135864528,0.86180905,2965.5,2964.5,0.00505817]
[1769135866528,2.01548603,2965.5,2964.5,0.00505817]
[1769135866829,1.15367698,2965.2,2964.2,0.00411528]
[1769135867029,0.86180905,2965.1,2964.2,0.00411528]
[1769135867221,0.86180905,2965.0,2964.2,0.00411528]
[1769135867422,0.86180905,2964.9,2964.2,0.00411528]
[1769135867620,0.86180905,2964.8,2964.2,0.00411528]
[1769135867921,1.15367698,2965.2,2964.2,0.00411528]
[1769135868121,2.01225407,2965.1,2964.2,0.00411528]
[1769135868323,0.85857709,2965.0,2964.2,0.00411528]
[1769135868630,0.85857709,2964.9,2964.2,0.00411528]
[1769135868833,0.85857709,2964.8,2964.2,0.00411528]
[1769135869030,1.15367698,2965.1,2964.2,0.00411528]
[1769135869031,0.85857709,2964.7,2964.2,0.00411528]
[1769135869329,1.15367698,2965.1,2963.6,1.12086719]
[1769135869530,0.85843242,2965.0,2963.6,1.12086719]
[1769135869731,0.85843242,2964.9,2963.6,1.12086719]
[1769135869930,0.85843242,2964.8,2963.6,1.12086719]
[1769135870132,0.85843242,2964.7,2963.6,1.12507317]
[1769135870433,1.15367698,2965.1,2963.6,1.12507317]
[1769135870733,0.8585965,2965.0,2963.6,1.12507317]
[1769135870934,0.8585965,2964.9,2963.6,1.12507317]
[1769135871124,0.8585965,2964.8,2963.6,0.00420598]
[1769135871329,0.89638028,2965.3,2962.7,1.12086719]
[1769135871330,2.04499909,2964.5,2962.7,1.12086719]
[1769135871527,0.8585965,2964.4,2962.7,1.12086719]
[1769135871727,0.8585965,2964.3,2962.7,1.12086719]
[1769135871936,2.04499909,2964.9,2962.7,1.12086719]
[1769135871937,0.85855401,2964.2,2962.7,1.12086719]
[1769135872139,1.15367698,2964.8,2962.7,1.12086719]
[1769135872436,0.00505817,2963.7,2962.7,1.12383263]
[1769135872633,0.00808004,2963.7,2962.7,1.12383263]
[1769135877137,0.00808004,2963.7,2962.9,1.12086719]
[1769135880443,1.15367698,2964.8,2962.9,1.12086719]
[1769135880641,7.65167698,2965.2,2963.1,1.12086719]
[1769135880841,0.8577806,2965.1,2963.1,1.12086719]
[1769135881040,0.8577806,2965.0,2963.1,1.12086719]
[1769135881247,7.65167698,2965.2,2963.1,1.12086719]
[1769135881452,0.85790628,2965.1,2963.1,1.12086719]
[1769135881648,0.85790628,2965.0,2963.1,1.12086719]
[1769135881946,7.65407593,2965.2,2963.1,1.12086719]
[1769135882247,0.85797533,2965.1,2963.1,1.12086719]
[1769135882448,0.85797533,2965.0,2963.1,1.12086719]
[1769135882748,0.85797533,2964.9,2963.1,1.12086719]
[1769135882950,7.65407593,2965.2,2963.1,1.12086719]
[1769135883140,0.85809844,2965.1,2963.1,1.12086719]
[1769135883341,0.85809844,2965.0,2963.1,1.12086719]
[1769135883541,0.85809844,2965.0,2963.0,3.3183648]
[1769135883542,0.85809844,2964.9,2963.8,0.00505817]
[1769135883846,7.65407593,2965.2,2963.8,0.00505817]
[1769135884042,0.85825352,2965.1,2963.8,0.00505817]
[1769135884347,0.85825352,2965.0,2963.8,0.00505817]
[1769135884545,0.85825352,2964.9,2963.8,0.00505817]
[1769135884744,7.65407593,2965.2,2963.8,0.00505817]
[1769135884939,0.85845439,2965.1,2963.8,0.00505817]
[1769135885141,0.85845439,2965.0,2963.8,0.00505817]
[1769135885347,0.85845439,2964.9,2963.8,0.00505817]
[1769135885547,7.65407593,2965.2,2963.8,0.00505817]
[1769135885741,0.85869199,2965.1,2963.8,0.00505817]
[1769135885943,0.85869199,2965.0,2963.8,0.00505817]
[1769135886241,0.85869199,2964.9,2963.8,0.00505817]
[1769135886443,7.65407593,2965.2,2963.8,0.00505817]
[1769135886647,0.85897495,2965.1,2963.8,0.00505817]
[1769135886843,0.85897495,2965.0,2963.8,0.00505817]
[1769135887039,0.85897495,2964.9,2963.8,0.00505817]
[1769135887348,0.85897495,2964.8,2963.8,0.00505817]
[1769135887655,7.65407593,2965.2,2963.8,0.00505817]
[1769135887841,0.85931344,2965.1,2963.8,0.00505817]
[1769135888047,0.85931344,2965.0,2963.8,0.00505817]
[1769135888243,0.85931344,2964.9,2963.8,0.00505817]
[1769135888446,0.85931344,2964.8,2963.8,0.00505817]
[1769135888647,7.65407593,2965.2,2963.8,0.00505817]
[1769135888948,0.85963555,2965.1,2963.8,0.00505817]
[1769135889149,0.85963555,2965.0,2963.8,0.00505817]
[1769135889451,0.85963555,2964.9,2963.8,0.00505817]
[1769135889644,0.85963555,2964.8,2963.8,0.00505817]
[1769135889848,7.65407593,2965.2,2963.8,0.00505817]
[1769135890050,0.8597722,2965.1,2963.8,0.00505817]
[1769135890245,0.8597722,2965.0,2963.8,0.00505817]
[1769135890444,0.8597722,2964.9,2963.8,0.00505817]
[1769135890646,7.65407593,2965.2,2963.8,0.00505817]
[1769135890844,0.85989726,2965.1,2963.8,0.00505817]
[1769135891044,0.85989726,2965.0,2963.8,0.00505817]
[1769135891247,0.85989726,2964.9,2963.8,0.00505817]
[1769135891554,7.65407593,2965.2,2963.8,0.00505817]
[1769135891748,0.86006344,2965.1,2963.8,0.00505817]
[1769135891949,0.86006344,2965.0,2963.8,0.00505817]
[1769135892145,0.86006344,2964.9,2963.8,0.00505817]
[1769135892448,0.93871221,2964.7,2963.8,0.00505817]
[1769135892640,0.86024477,2964.6,2963.8,0.00505817]
[1769135892850,0.93871221,2964.6,2963.8,0.00505817]
[1769135897655,0.85971497,2964.5,2963.8,0.00505817]
[1769135897854,0.93871221,2964.6,2963.8,0.00505817]
[1769135898653,0.85972435,2964.5,2963.8,0.00505817]
[1769135898849,0.93871221,2964.6,2963.8,0.00505817]
[1769135899048,0.85972439,2964.5,2963.8,0.00505817]
[1769135899252,0.00505817,2964.5,2963.2,0.91651431]
[1769135899557,0.85965141,2964.4,2963.2,0.91651431]
[1769135899849,0.94377038,2964.5,2963.2,0.91651431]
[1769135900056,0.85965105,2964.4,2963.2,0.91651431]
[1769135900258,0.94377038,2964.5,2963.2,0.91651431]
[1769135900554,0.85965679,2964.4,2963.2,0.91651431]
[1769135900754,0.94377038,2964.5,2963.2,0.91651431]
[1769135900957,0.85965537,2964.4,2963.2,0.91651431]
[1769135901154,0.94377038,2964.5,2963.2,0.91651431]
[1769135901359,0.85965352,2964.4,2963.2,0.91651431]
[1769135901657,0.94377038,2964.5,2963.2,0.91651431]
[1769135901952,0.85963917,2964.4,2963.2,0.91651431]
[1769135902152,0.94377038,2964.5,2963.2,0.91651431]
[1769135902352,0.8596381,2964.4,2963.2,0.91651431]
[1769135902552,0.94377038,2964.5,2963.2,0.91651431]
[1769135902758,0.85966971,2964.4,2963.2,0.91651431]
[1769135902962,0.94377038,2964.5,2963.2,0.91651431]
[1769135903156,0.85967002,2964.4,2963.2,0.91651431]
[1769135903354,0.94377038,2964.5,2963.2,0.91651431]
[1769135903559,0.93871221,2964.3,2962.8,3.343557]
[1769135903855,0.85969715,2964.2,2962.8,3.343557]
[1769135904056,0.85969715,2964.1,2962.8,3.343557]
[1769135904357,0.93871221,2964.3,2962.8,3.343557]
[1769135904659,0.85954889,2964.2,2962.8,3.343557]
[1769135904856,0.85954889,2964.1,2962.8,3.343557]
[1769135905058,0.93871221,2964.3,2962.8,3.343557]
[1769135905358,0.8595552,2964.2,2962.8,0.91651431]
[1769135905558,0.8595552,2964.1,2962.8,0.91651431]
[1769135905862,0.93871221,2964.3,2962.8,0.91651431]
[1769135906062,0.85946192,2964.2,2962.8,0.91651431]
[1769135906360,0.85946192,2964.1,2962.8,0.91651431]
[1769135906555,0.93871221,2964.3,2962.8,0.91651431]
[1769135906755,0.85936556,2964.2,2962.8,0.91651431]
[1769135906957,0.85936556,2964.1,2962.8,0.91651431]
[1769135907156,0.93871221,2964.3,2962.8,0.91651431]
[1769135907363,0.85936556,2964.2,2962.8,0.91651431]
[1769135907561,0.85936556,2964.1,2962.8,0.91651431]
[1769135907762,0.93871221,2964.3,2962.8,0.91651431]
[1769135907958,0.85927267,2964.2,2962.8,0.91651431]
[1769135908158,0.93871221,2964.3,2962.8,0.91651431]
[1769135908159,0.85927267,2964.1,2962.8,0.91651431]
[1769135908463,0.93871221,2964.3,2962.8,0.91651431]
[1769135908662,0.85918859,2964.2,2962.8,0.91651431]
[1769135908961,0.85918859,2964.1,2962.8,0.91651431]
[1769135909263,0.93871221,2964.3,2962.8,0.91651431]
[1769135909458,0.93871221,2964.1,2962.8,0.91651431]
[1769135909658,0.85909295,2964.0,2962.8,0.91651431]
[1769135909864,0.93871221,2964.1,2962.8,0.91651431]
[1769135910069,0.85906116,2964.0,2962.8,0.91651431]
[1769135910258,0.93871221,2964.1,2962.8,0.91651431]
[1769135910458,0.85894382,2964.0,2962.8,0.91651431]
[1769135910658,0.93871221,2964.1,2962.8,0.91651431]
[1769135910859,0.85899492,2964.0,2962.8,0.91651431]
[1769135911059,0.93871221,2964.1,2962.8,0.91651431]
[1769135911966,0.91186997,2964.5,2962.8,0.91651431]
[1769135912165,0.85899437,2964.4,2962.8,0.91651431]
[1769135912362,0.85899437,2964.3,2962.8,0.91651431]
[1769135912666,0.85899437,2964.2,2962.8,0.91651431]
[1769135912863,0.85899437,2964.1,2962.8,0.91651431]
[1769135913165,0.91186997,2964.5,2962.8,0.91651431]
[1769135913364,0.85891657,2964.4,2962.8,0.91651431]
[1769135913565,0.85891657,2964.3,2962.8,0.91651431]
[1769135913760,0.85891657,2964.2,2962.8,0.91651431]
[1769135913966,0.85891657,2964.1,2962.8,0.91651431]
[1769135914165,0.91186997,2964.5,2962.8,0.91651431]
[1769135914366,0.85895695,2964.4,2962.8,0.91651431]
[1769135914663,0.85895695,2964.3,2962.8,0.91651431]
[1769135914860,0.85895695,2964.2,2962.8,0.91651431]
[1769135915060,0.85895695,2964.1,2962.8,0.91651431]
[1769135915260,0.91186997,2964.5,2962.8,0.91651431]
[1769135915460,0.85890742,2964.4,2962.8,0.91651431]
[1769135915667,0.85890742,2964.3,2962.8,0.91651431]
[1769135915967,0.85890742,2964.2,2962.8,0.91651431]
[1769135916168,0.85890742,2964.1,2962.8,0.91651431]
[1769135916370,0.91186997,2964.5,2962.8,0.91651431]
[1769135916566,0.85870304,2964.4,2962.8,0.91651431]
[1769135916866,0.85870304,2964.4,2962.7,0.00296544]
[1769135916867,0.85870304,2964.3,2963.0,0.91839042]
[1769135917070,0.89216762,2964.4,2963.0,0.91839042]
[1769135917071,0.85870304,2964.2,2963.0,0.91839042]
[1769135917267,0.85870304,2964.1,2963.0,0.91839042]
[1769135917464,0.85870304,2964.0,2963.0,0.91839042]
[1769135917669,0.89216762,2964.4,2963.0,0.91839042]
[1769135917876,0.85870573,2964.3,2963.0,0.91839042]
[1769135918071,0.85870573,2964.2,2963.0,0.91839042]
[1769135918369,0.85870573,2964.1,2963.0,0.91839042]
[1769135918568,0.85870573,2964.0,2963.0,0.91839042]
[1769135918770,0.89216762,2964.4,2963.0,0.91839042]
[1769135918967,0.85875887,2964.3,2963.0,0.91839042]
[1769135919168,0.85875887,2964.2,2963.0,0.91839042]
[1769135919366,0.85875887,2964.1,2963.0,0.91839042]
[1769135919569,0.85875887,2964.0,2963.0,0.91839042]
[1769135919773,0.89216762,2964.4,2963.0,0.91839042]
[1769135920068,0.89216762,2964.1,2963.0,0.91839042]
[1769135920273,0.85893083,2964.0,2963.0,0.91839042]
[1769135920473,0.89216762,2964.4,2963.0,0.91839042]
[1769135920673,0.85903182,2964.3,2963.0,0.91839042]
[1769135920873,0.85903182,2964.2,2963.0,0.91839042]
[1769135921073,0.85903182,2964.1,2963.0,0.91839042]
[1769135921275,0.85903182,2964.0,2963.0,0.91839042]
[1769135921476,0.89216762,2964.4,2963.0,0.91839042]
[1769135921676,0.85921079,2964.3,2963.0,0.91839042]
[1769135921874,0.85921079,2964.2,2963.0,0.91839042]
[1769135922170,0.85921079,2964.1,2963.0,0.91839042]
[1769135922374,0.85921079,2964.0,2963.0,0.91839042]
[1769135922567,0.89216762,2964.4,2963.0,0.91839042]
[1769135922767,0.85942564,2964.3,2963.0,0.91839042]
[1769135922969,0.85942564,2964.2,2963.0,0.91839042]
[1769135923171,0.85942564,2964.1,2963.0,0.91839042]
[1769135923471,0.85942564,2964.0,2963.0,0.91839042]
[1769135923776,0.89216762,2964.4,2963.0,0.91839042]
[1769135923978,0.85948607,2964.3,2963.0,0.91839042]
[1769135924275,0.85948607,2964.2,2963.0,0.91839042]
[1769135924476,0.85948607,2964.1,2963.0,0.91839042]
[1769135924670,0.89216762,2964.4,2963.0,0.91839042]
[1769135924871,0.85944354,2964.3,2963.0,0.91839042]
[1769135925076,0.85944354,2964.2,2963.0,0.91839042]
[1769135925277,0.85944354,2964.1,2963.0,0.91839042]
[1769135925478,0.89216762,2964.4,2963.0,0.91839042]
[1769135925777,0.85956898,2964.3,2963.0,0.91839042]
[1769135926075,0.85956898,2964.2,2963.0,0.91839042]
[1769135926278,0.85956898,2964.1,2963.0,0.91839042]
[1769135926572,0.89216762,2964.4,2963.0,0.91839042]
[1769135926770,0.85971368,2964.3,2963.0,0.91839042]
[1769135926971,0.85971368,2964.2,2963.0,0.91839042]
[1769135927171,0.89216762,2964.4,2963.0,0.91839042]
[1769135927371,0.85971384,2964.3,2963.0,0.91839042]
[1769135927574,0.85971384,2964.2,2963.0,0.91839042]
[1769135927772,0.85971384,2964.1,2963.0,0.91839042]
[1769135928070,0.89216762,2964.4,2963.0,0.91839042]
[1769135928271,0.859884,2964.3,2963.0,0.91839042]
[1769135928473,0.859884,2964.2,2963.0,0.91839042]
[1769135928678,0.859884,2964.1,2963.0,0.91839042]
[1769135928878,0.89216762,2964.4,2963.0,0.91839042]
[1769135929083,0.86006775,2964.3,2963.0,0.91839042]
[1769135929282,0.86006775,2964.2,2963.0,0.91839042]
[1769135929494,0.86006775,2964.1,2963.0,0.91839042]
[1769135929789,0.89216762,2964.4,2963.0,0.91839042]
[1769135929984,0.86015553,2964.3,2963.0,0.91839042]
[1769135930186,0.00505817,2964.5,2963.3,0.91839042]
[1769135930387,0.86031296,2964.4,2963.3,0.91839042]
[1769135930586,0.86031296,2964.3,2963.3,0.91839042]
[1769135930786,0.00505817,2964.5,2963.3,0.91839042]
[1769135930980,0.85964733,2964.4,2963.3,0.91839042]
[1769135931181,0.85964733,2964.3,2963.3,0.91839042]
[1769135931484,0.00505817,2964.5,2963.3,0.91839042]
[1769135931686,0.85958141,2964.4,2963.3,0.91839042]
[1769135931884,0.85958141,2964.3,2963.3,0.91839042]
[1769135932085,0.00505817,2964.5,2963.3,0.91839042]
[1769135932286,0.85957687,2964.4,2963.3,0.91839042]
[1769135932483,0.85957687,2964.3,2963.3,0.91839042]
[1769135932682,0.00505817,2964.5,2963.8,0.89216762]
[1769135932883,0.00505817,2964.5,2963.8,1.81055804]
[1769135934990,0.00505817,2964.5,2963.8,0.91839042]
[1769135939791,0.89722579,2964.5,2963.4,0.91839042]
[1769135940694,0.00505817,2964.5,2963.4,0.91839042]
[1769135956808,0.85961432,2964.4,2963.4,0.91839042]
[1769135957113,0.85961432,2964.3,2963.4,0.91839042]
[1769135957307,0.85976532,2964.2,2963.4,0.91839042]
[1769135957612,0.00505817,2964.5,2963.4,0.91839042]
[1769135957911,0.85976551,2964.4,2963.4,0.91839042]
[1769135958113,0.85976551,2964.3,2963.4,0.91839042]
[1769135958409,0.85976551,2964.2,2963.4,0.91839042]
[1769135958604,0.00505817,2964.5,2963.4,0.91839042]
[1769135958805,0.85995568,2964.4,2963.4,0.91839042]
[1769135959004,0.85995568,2964.3,2963.4,0.91839042]
[1769135959205,0.85995568,2964.2,2963.4,0.91839042]
[1769135959407,0.85995568,2964.1,2963.4,0.91839042]
[1769135959609,0.89722579,2964.5,2963.4,0.91839042]
[1769135959811,0.8601752,2964.4,2963.4,0.91839042]
[1769135960003,0.8601752,2964.3,2963.4,0.91839042]
[1769135960200,0.8601752,2964.2,2963.4,0.91839042]
[1769135960418,0.00505817,2964.5,2963.7,0.84861506]
[1769135962806,0.89216762,2964.1,2963.0,2.42704269]
[1769135963011,0.89216762,2964.1,2962.7,0.8515805]
[1769135966416,0.89216762,2964.1,2962.8,1.74078268]
[1769135966818,0.89216762,2964.1,2962.8,4.16782537]
[1769135967211,1.7599115,2964.4,2962.9,0.84861506]
[1769135967515,1.7599115,2964.4,2963.1,1.74078268]
[1769135968517,0.00505817,2964.5,2963.2,0.84861506]
[1769135971420,0.89216762,2964.4,2963.2,0.84861506]
[1769135971622,1.7599115,2964.4,2962.8,4.16782537]
[1769135972226,1.7599115,2964.4,2962.9,0.78275388]
[1769135972426,0.85538731,2964.3,2962.9,0.78275388]
[1769135972619,0.85538731,2964.2,2962.9,0.78275388]
[1769135972819,1.7599115,2964.4,2962.9,0.78275388]
[1769135973020,0.85538203,2964.3,2962.9,0.78275388]
[1769135973222,0.85538203,2964.2,2962.9,0.78275388]
[1769135973529,1.7599115,2964.4,2962.9,0.78275388]
[1769135973720,0.85535064,2964.3,2962.9,0.78275388]
[1769135973920,0.85535064,2964.2,2962.9,0.78275388]
[1769135974123,1.7599115,2964.4,2962.9,0.78275388]
[1769135974321,0.8553501,2964.3,2962.9,0.78275388]
[1769135974520,0.8553501,2964.2,2962.9,0.78275388]
[1769135974820,1.7599115,2964.4,2962.9,0.78275388]
[1769135975020,0.85532395,2964.3,2962.9,0.78275388]
[1769135975225,0.85532395,2964.2,2962.9,0.78275388]
[1769135975419,1.7599115,2964.4,2962.9,0.78275388]
[1769135975621,0.85530993,2964.3,2962.9,0.78275388]
[1769135975820,0.85530993,2964.2,2962.9,0.78275388]
[1769135976017,1.7599115,2964.4,2962.9,0.78275388]
[1769135976221,0.85530993,2964.3,2962.9,0.78275388]
[1769135976426,0.85530993,2964.2,2962.9,0.78275388]
[1769135976723,1.7599115,2964.4,2962.9,0.78275388]
[1769135976919,0.85530926,2964.3,2963.2,0.78275388]
[1769135977124,0.00505817,2964.5,2963.3,0.78275388]
[1769135977334,0.00505817,2964.5,2963.4,0.78275388]
[1769135978533,0.00505817,2964.5,2963.4,3.20979657]
[1769135978725,0.00505817,2964.5,2963.5,0.78275388]
[1769135994848,0.00505817,2964.5,2963.1,7.05379657]
[1769135995038,0.00505817,2964.5,2963.2,0.78275388]
[1769135997347,0.00505817,2964.5,2963.2,3.20979657]
[1769135997546,0.00505817,2964.5,2963.3,0.78275388]
[1769136000354,0.00505817,2964.5,2963.4,0.78275388]
[1769136003150,0.71319585,2965.4,2963.5,0.73101145]
[1769136003358,0.85606943,2965.1,2963.6,0.73101145]
[1769136003552,0.85606943,2965.0,2963.7,0.73101145]
[1769136003752,2.42502408,2965.7,2963.6,3.31891397]
[1769136003753,7.21119585,2965.8,2964.1,0.73101145]
[1769136004149,0.71319585,2965.5,2964.1,0.73101145]
[1769136004349,0.71319585,2965.5,2963.9,2.42704269]
[1769136004551,0.85619999,2965.1,2963.7,0.73101145]
[1769136004752,0.85619999,2965.0,2963.7,0.73101145]
[1769136004951,0.65717714,2965.2,2963.7,0.73101145]
[1769136005156,0.85618331,2965.1,2963.7,0.73101145]
[1769136005350,0.85618331,2965.0,2963.7,3.15805414]
[1769136005552,0.65717714,2965.2,2963.7,3.15805414]
[1769136005858,0.85635914,2965.1,2963.7,3.15805414]
[1769136006055,0.85635914,2965.0,2963.7,3.15805414]
[1769136006357,0.65717714,2965.2,2963.8,0.65558888]
[1769136006558,0.85661274,2965.1,2963.8,0.65558888]
[1769136006758,0.85661274,2965.0,2963.8,0.65558888]
[1769136007053,0.85661274,2964.9,2963.8,0.65558888]
[1769136007256,0.85661274,2964.8,2963.8,0.65558888]
[1769136007458,0.65717714,2965.2,2963.8,0.65558888]
[1769136007655,0.85654204,2965.1,2963.8,0.65558888]
[1769136007854,0.85654204,2965.0,2963.8,0.65558888]
[1769136008055,0.85654204,2964.9,2963.8,0.65558888]
[1769136008254,0.85654204,2964.8,2963.8,0.65558888]
[1769136008455,0.00239895,2965.2,2963.8,0.65558888]
[1769136008759,0.85647638,2965.1,2963.8,0.65558888]
[1769136009057,0.85647638,2965.0,2963.8,0.65558888]
[1769136009257,0.85647638,2964.9,2963.8,0.65558888]
[1769136009458,0.85647638,2964.8,2963.8,0.65558888]
[1769136009655,0.00239895,2965.2,2963.8,0.65558888]
[1769136009855,0.85639596,2965.1,2963.8,0.65558888]
[1769136010155,0.85639596,2965.0,2963.8,0.65558888]
[1769136010356,0.85639596,2964.9,2963.8,0.65558888]
[1769136010555,0.00239895,2965.2,2963.8,0.65558888]
[1769136010756,0.8563347,2965.1,2963.8,0.65558888]